fUST/lending_fUST_20250209
["ID","MTS","AMOUNT","RATE_DAILY","PERIOD"]
[352296500,1739030876554,-229.24573593,0.0001,2]
[352296501,1739030876582,-4232.1606356,0.00010301,2]
[352296502,1739030876609,-400.0,0.00010685,2]
[352296503,1739030876636,-300.0,0.00010957,2]
[352296504,1739030876664,-500.0,0.00010958,2]
[352296505,1739030876690,-565.77,0.00010958,2]
[352296506,1739030876718,-500.0,0.00010958,2]
[352296507,1739030876746,-500.0,0.00010958,2]
[352296508,1739030876773,-500.0,0.00010958,2]
[352296509,1739030876800,-500.0,0.00010958,2]
[352296510,1739030876828,-332.29950909,0.00010958,2]
[352296511,1739030876855,-500.0,0.00010958,2]
[352296512,1739030876883,-500.0,0.00010958,2]
[352296513,1739030876913,-500.0,0.00010958,2]
[352296514,1739030877124,-500.0,0.00010958,2]
[352296515,1739030877154,-500.0,0.00010958,2]
[352296516,1739030877182,-587.49,0.00010958,2]
[352296517,1739030877211,-629.48417489,0.00010958,2]
[352296518,1739030877240,-458.35517356,0.00010958,2]
[352296519,1739030877269,-500.0,0.00010958,2]
[352296520,1739030877296,-500.0,0.00010958,2]
[352296521,1739030877327,-500.0,0.00010958,2]
[352296522,1739030877355,-500.0,0.00010958,2]
[352296523,1739030877384,-500.0,0.00010958,2]
[352296524,1739030877412,-504.28694573,0.00010958,2]
[352296525,1739030877439,-511.42788002,0.00010958,2]
[352296526,1739030877466,-500.0,0.00010958,2]
[352296527,1739030877494,-500.0,0.00010958,2]
[352296528,1739030877520,-500.0,0.00010958,2]
[352296529,1739030877548,-500.0,0.00010958,2]
[352296530,1739030877575,-500.0,0.00010958,2]
[352296531,1739030877604,-500.0,0.00010958,2]
[352296532,1739030877633,-500.0,0.00010958,2]
[352296533,1739030877662,-500.0,0.00010958,2]
[352296534,1739030877691,-500.0,0.00010958,2]
[352296535,1739030877717,-500.0,0.00010958,2]
[352296536,1739030877744,-500.0,0.00010958,2]
[352296537,1739030877770,-500.0,0.00010958,2]
[352296538,1739030877798,-500.0,0.00010958,2]
[352296539,1739030877826,-500.0,0.00010958,2]
[352296540,1739030877854,-647.74345527,0.00010958,2]
[352296541,1739030877881,-500.0,0.00010958,2]
[352296542,1739030877909,-376.87501903,0.00010958,2]
[352296543,1739030877937,-500.0,0.00010958,2]
[352296544,1739030877966,-500.0,0.00010958,2]
[352296545,1739030877995,-500.0,0.00010958,2]
[352296546,1739030878027,-552.84,0.00010958,2]
[352296547,1739030878058,-500.0,0.00010958,2]
[352296548,1739030878088,-500.0,0.00010958,2]
[352296549,1739030878117,-503.46361273,0.00010958,2]
[352296550,1739030878146,-521.08,0.00010958,2]
[352296551,1739030878174,-500.0,0.00010958,2]
[352296552,1739030878202,-500.0,0.00010958,2]
[352296553,1739030878233,-500.0,0.00010958,2]
[352296554,1739030878260,-500.0,0.00010958,2]
[352296555,1739030878289,-500.0,0.00010958,2]
[352296556,1739030878323,-500.0,0.00010958,2]
[352296557,1739030878353,-500.0,0.00010958,2]
[352296558,1739030878385,-500.0,0.00010958,2]
[352296559,1739030878416,-500.0,0.00010958,2]
[352296560,1739030878445,-500.0,0.00010958,2]
[352296561,1739030878472,-500.0,0.00010958,2]
[352296562,1739030878500,-500.0,0.00010958,2]
[352296563,1739030878528,-500.0,0.00010958,2]
[352296564,1739030878556,-500.0,0.00010958,2]
[352296565,1739030878584,-289.81833978,0.00010958,2]
[352296566,1739030878611,-500.0,0.00010958,2]
[352296567,1739030878640,-742.61,0.00010958,2]
[352296568,1739030878668,-500.0,0.00010958,2]
[352296569,1739030878695,-1112.54,0.00010958,2]
[352296570,1739030878722,-500.0,0.00010958,2]
[352296571,1739030878750,-500.0,0.00010958,2]
[352296572,1739030878777,-500.0,0.00010958,2]
[352296573,1739030878805,-924.05,0.00010958,2]
[352296574,1739030878834,-586.70871007,0.00010958,2]
[352296575,1739030878862,-500.0,0.00010958,2]
[352296576,1739030878890,-500.0,0.00010958,2]
[352296577,1739030878919,-500.0,0.00010958,2]
[352296578,1739030878945,-500.0,0.00010958,2]
[352296579,1739030878973,-1260.26,0.00010958,2]
[352296580,1739030879001,-500.0,0.00010958,2]
[352296581,1739030879029,-1280.55,0.00010958,2]
[352296582,1739030879057,-271.99392976,0.00010958,2]
[352296583,1739030879085,-519.94,0.00010958,2]
[352296584,1739030879115,-500.0,0.00010958,2]
[352296585,1739030879143,-500.0,0.00010958,2]
[352296586,1739030879171,-531.01,0.00010958,2]
[352296587,1739030879200,-500.0,0.00010958,2]
[352296588,1739030879229,-500.0,0.00010958,2]
[352296589,1739030879257,-500.0,0.00010958,2]
[352296590,1739030879287,-506.43130944,0.00010958,2]
[352296591,1739030879319,-765.67,0.00010958,2]
[352296592,1739030879348,-500.0,0.00010958,2]
[352296593,1739030879376,-500.0,0.00010958,2]
[352296594,1739030879409,-500.0,0.00010958,2]
[352296595,1739030879437,-500.0,0.00010958,2]
[352296596,1739030879466,-585.18,0.00010958,2]
[352296597,1739030879494,-500.0,0.00010958,2]
[352296598,1739030879524,-534.28,0.00010958,2]
[352296599,1739030879551,-500.0,0.00010958,2]
[352296600,1739030879579,-500.0,0.00010958,2]
[352296601,1739030879607,-500.0,0.00010958,2]
[352296602,1739030879636,-500.0,0.00010958,2]
[352296603,1739030879664,-1194.55,0.00010958,2]
[352296604,1739030879695,-912.94,0.00010958,2]
[352296605,1739030879722,-500.0,0.00010958,2]
[352296606,1739030879749,-500.0,0.00010958,2]
[352296607,1739030879777,-500.0,0.00010958,2]
[352296608,1739030879804,-500.0,0.00010958,2]
[352296609,1739030879831,-500.0,0.00010958,2]
[352296610,1739030879858,-500.0,0.00010958,2]
[352296611,1739030879887,-500.0,0.00010958,2]
[352296612,1739030879915,-500.0,0.00010958,2]
[352296613,1739030879944,-500.0,0.00010958,2]
[352296614,1739030879973,-862.82,0.00010958,2]
[352296615,1739030880000,-500.0,0.00010958,2]
[352296616,1739030880027,-504.06265539,0.00010958,2]
[352296617,1739030880057,-500.0,0.00010958,2]
[352296618,1739030880085,-538.09,0.00010958,2]
[352296619,1739030880112,-879.17,0.00010958,2]
[352296620,1739030880143,-500.0,0.00010958,2]
[352296621,1739030880170,-500.0,0.00010958,2]
[352296622,1739030880198,-993.92,0.00010958,2]
[352296623,1739030880229,-500.0,0.00010958,2]
[352296624,1739030880258,-1080.78,0.00010958,2]
[352296625,1739030880284,-500.0,0.00010958,2]
[352296626,1739030880311,-500.0,0.00010958,2]
[352296627,1739030880485,-500.0,0.00010958,2]
[352296628,1739030880513,-500.0,0.00010958,2]
[352296629,1739030880540,-500.0,0.00010958,2]
[352296630,1739030880567,-500.0,0.00010958,2]
[352296631,1739030880595,-496.7,0.00010958,2]
[352296632,1739030880623,-500.0,0.00010958,2]
[352296633,1739030880650,-927.79,0.00010958,2]
[352296634,1739030880677,-500.0,0.00010958,2]
[352296635,1739030880703,-500.0,0.00010958,2]
[352296636,1739030880729,-500.0,0.00010958,2]
[352296637,1739030880757,-1455.08,0.00010958,2]
[352296638,1739030880783,-500.0,0.00010958,2]
[352296639,1739030880807,-958.96,0.00010958,2]
[352296640,1739030880834,-596.02,0.00010958,2]
[352296641,1739030880861,-500.0,0.00010958,2]
[352296642,1739030880888,-500.0,0.00010958,2]
[352296643,1739030880926,-500.0,0.00010958,2]
[352296644,1739030880958,-500.0,0.00010958,2]
[352296645,1739030880987,-623.95,0.00010958,2]
[352296646,1739030881016,-500.0,0.00010958,2]
[352296647,1739030881045,-503.94,0.00010958,2]
[352296648,1739030881076,-2888.93,0.00010958,2]
[352296649,1739030881106,-500.0,0.00010958,2]
[352296650,1739030881136,-2700.91,0.00010958,2]
[352296651,1739030881166,-505.58,0.00010958,2]
[352296652,1739030881197,-500.0,0.00010958,2]
[352296653,1739030881227,-500.0,0.00010958,2]
[352296654,1739030881257,-3165.44,0.00010958,2]
[352296655,1739030881287,-679.52,0.00010958,2]
[352296656,1739030881316,-1253.47,0.00010958,2]
[352296657,1739030881348,-500.0,0.00010958,2]
[352296658,1739030881378,-397.14071428,0.00010958,2]
[352296659,1739030881409,-500.0,0.00010958,2]
[352296660,1739030881437,-500.0,0.00010958,2]
[352296661,1739030881466,-796.51,0.00010958,2]
[352296662,1739030881495,-392.32299539,0.00010958,2]
[352296663,1739030881523,-501.45333094,0.00010958,2]
[352296664,1739030881551,-3601.06,0.00010958,2]
[352296665,1739030881579,-500.0,0.00010958,2]
[352296666,1739030881606,-500.0,0.00010958,2]
[352296667,1739030881635,-1296.46,0.00010958,2]
[352296668,1739030881663,-1107.91,0.00010958,2]
[352296669,1739030881692,-632.43322943,0.00010958,2]
[352296670,1739030881721,-1448.33,0.00010958,2]
[352296671,1739030881750,-500.0,0.00010958,2]
[352296672,1739030881779,-500.0,0.00010958,2]
[352296673,1739030881808,-500.0,0.00010958,2]
[352296674,1739030881837,-500.0,0.00010958,2]
[352296675,1739030881867,-871.52,0.00010958,2]
[352296676,1739030881898,-1450.94,0.00010958,2]
[352296677,1739030881929,-574.9,0.00010958,2]
[352296678,1739030881958,-538.61,0.00010958,2]
[352296679,1739030881987,-610.11,0.00010958,2]
[352296680,1739030882016,-500.0,0.00010958,2]
[352296681,1739030882045,-500.0,0.00010958,2]
[352296682,1739030882075,-500.0,0.00010958,2]
[352296683,1739030882102,-500.0,0.00010958,2]
[352296684,1739030882130,-500.0,0.00010958,2]
[352296685,1739030882164,-1675.14,0.00010958,2]
[352296686,1739030882192,-500.0,0.00010958,2]
[352296687,1739030882221,-500.0,0.00010958,2]
[352296688,1739030882250,-500.0,0.00010958,2]
[352296689,1739030882279,-721.65,0.00010958,2]
[352296690,1739030882307,-500.0,0.00010958,2]
[352296691,1739030882340,-500.0,0.00010958,2]
[352296692,1739030882369,-500.0,0.00010958,2]
[352296693,1739030882401,-500.0,0.00010958,2]
[352296694,1739030882431,-2319.27,0.00010958,2]
[352296695,1739030882459,-13554.87,0.00010958,2]
[352296696,1739030882488,-500.0,0.00010958,2]
[352296697,1739030882517,-914.18,0.00010958,2]
[352296698,1739030882546,-3376.04,0.00010958,2]
[352296699,1739030882574,-500.0,0.00010958,2]
[352296700,1739030882602,-500.0,0.00010958,2]
[352296701,1739030882630,-500.0,0.00010958,2]
[352296702,1739030882663,-11962.76,0.00010958,2]
[352296703,1739030882694,-1109.42,0.00010958,2]
[352296704,1739030882723,-4388.65,0.00010958,2]
[352296705,1739030882751,-500.0,0.00010958,2]
[352296706,1739030882780,-3515.82,0.00010958,2]
[352296707,1739030882807,-500.0,0.00010958,2]
[352296708,1739030882834,-500.0,0.00010958,2]
[352296709,1739030882861,-500.0,0.00010958,2]
[352296710,1739030882891,-500.0,0.00010958,2]
[352296711,1739030882920,-830.1,0.00010958,2]
[352296712,1739030882949,-500.0,0.00010958,2]
[352296713,1739030882978,-500.0,0.00010958,2]
[352296714,1739030883006,-304.28702336,0.00010958,2]
[352296715,1739030883036,-500.0,0.00010958,2]
[352296716,1739030883066,-1230.4,0.00010958,2]
[352296717,1739030883094,-500.0,0.00010958,2]
[352296718,1739030883123,-500.0,0.00010958,2]
[352296719,1739030883153,-208.65336372,0.00010958,2]
[352296720,1739030883181,-976.2,0.00010958,2]
[352296721,1739030883209,-500.0,0.00010958,2]
[352296722,1739030883237,-500.0,0.00010958,2]
[352296723,1739030883265,-503.32902953,0.00010958,2]
[352296724,1739030883294,-500.0,0.00010958,2]
[352296725,1739030883325,-500.0,0.00010958,2]
[352296726,1739030883353,-500.0,0.00010958,2]
[352296727,1739030883381,-484.42603316,0.00010958,2]
[352296728,1739030883414,-500.0,0.00010958,2]
[352296729,1739030883442,-500.0,0.00010958,2]
[352296730,1739030883470,-500.0,0.00010958,2]
[352296731,1739030883499,-500.0,0.00010958,2]
[352296732,1739030883527,-500.0,0.00010958,2]
[352296733,1739030883557,-3231.77,0.00010958,2]
[352296734,1739030883586,-500.0,0.00010958,2]
[352296735,1739030883615,-938.64,0.00010958,2]
[352296736,1739030883643,-500.0,0.00010958,2]
[352296737,1739030883673,-1853.74,0.00010958,2]
[352296738,1739030883702,-34530.25,0.00010958,2]
[352296739,1739030883733,-500.0,0.00010958,2]
[352296740,1739030883762,-1011.36,0.00010958,2]
[352296741,1739030883953,-500.0,0.00010958,2]
[352296742,1739030883982,-820.49,0.00010958,2]
[352296743,1739030884010,-500.0,0.00010958,2]
[352296744,1739030884037,-500.0,0.00010958,2]
[352296745,1739030884065,-500.0,0.00010958,2]
[352296746,1739030884094,-500.0,0.00010958,2]
[352296747,1739030884122,-500.0,0.00010958,2]
[352296748,1739030884153,-500.0,0.00010958,2]
[352296749,1739030884182,-1635.51,0.00010958,2]
[352296750,1739030884368,-229.24573593,0.00010958,2]
[352296751,1739030884380,-4232.1606356,0.00010958,2]
[352296752,1739030884394,-400.0,0.00010958,2]
[352296753,1739030884413,-300.0,0.00010958,2]
[352296754,1739030884425,-500.0,0.00010958,2]
[352296755,1739030884436,-565.77,0.00010958,2]
[352296756,1739030884447,-500.0,0.00010958,2]
[352296757,1739030884460,-139.92362847,0.00010958,2]
[352296758,1739030884469,-360.07637153,0.00010958,2]
[352296759,1739030884480,-139.92362847,0.00010958,2]
[352296760,1739030884491,-360.07637153,0.00011,11]
[352296761,1739030884508,-500.0,0.00011,11]
[352296762,1739030884520,-139.92362847,0.00011,11]
[352296763,1739030884531,-151.0,0.00011,2]
[352296764,1739030884540,-41.37588062,0.00011,2]
[352296765,1739030884552,-109.62411938,0.00011,2]
[352296766,1739030884562,-275.82439092,0.00011095,2]
[352296767,1739030884571,-114.5514897,0.00011095,2]
[352296768,1739030884583,-385.4485103,0.00011095,2]
[352296769,1739030884592,-114.5514897,0.00011095,2]
[352296770,1739030884618,-385.4485103,0.00011095,2]
[352296771,1739030884627,-114.5514897,0.00011095,2]
[352296772,1739030884640,-385.4485103,0.00011095,2]
[352296773,1739030884650,-114.5514897,0.00011095,2]
[352296774,1739030884672,-385.4485103,0.00011095,2]
[352296775,1739030884682,-114.5514897,0.00011095,2]
[352296776,1739030884694,-385.4485103,0.00011095,2]
[352296777,1739030884703,-202.0414897,0.00011095,2]
[352296778,1739030884714,-297.9585103,0.00011095,2]
[352296779,1739030884724,-331.52566459,0.00011095,2]
[352296780,1739030884735,-32.92417878,0.00011095,2]
[352296781,1739030884745,-425.43099478,0.00011095,2]
[352296782,1739030884756,-74.56900522,0.00011095,2]
[352296783,1739030884765,-425.43099478,0.00011095,2]
[352296784,1739030884776,-74.56900522,0.00011095,2]
[352296785,1739030884785,-425.43099478,0.00011095,2]
[352296786,1739030884796,-74.56900522,0.00011095,2]
[352296787,1739030884806,-425.43099478,0.00011095,2]
[352296788,1739030884818,-74.56900522,0.00011095,2]
[352296789,1739030884827,-425.43099478,0.00011095,2]
[352296790,1739030884845,-74.56900522,0.00011095,2]
[352296791,1739030884854,-425.43099478,0.00011095,2]
[352296792,1739030884870,-74.56900522,0.00011095,2]
[352296793,1739030884879,-429.71794051,0.00011095,2]
[352296794,1739030884891,-70.98733955,0.00011095,2]
[352296795,1739030884900,-440.44054047,0.00011095,2]
[352296796,1739030884912,-59.55945953,0.00011095,2]
[352296797,1739030884921,-440.44054047,0.00011095,2]
[352296798,1739030884932,-59.55945953,0.00011095,2]
[352296799,1739030884942,-440.44054047,0.00011095,2]
[352296800,1739030884953,-59.55945953,0.00011095,2]
[352296801,1739030884963,-440.44054047,0.00011095,2]
[352296802,1739030884978,-59.55945953,0.00011095,2]
[352296803,1739030884987,-440.44054047,0.00011095,2]
[352296804,1739030884999,-59.55945953,0.00011095,2]
[352296805,1739030885008,-440.44054047,0.00011095,2]
[352296806,1739030885019,-59.55945953,0.00011095,2]
[352296807,1739030885028,-178.7874689,0.00011095,2]
[352296808,1739030885037,-261.65307157,0.00011095,2]
[352296809,1739030885048,-238.34692843,0.00011095,2]
[352296810,1739030885058,-261.65307157,0.00011095,2]
[352296811,1739030885085,-238.34692843,0.00011095,2]
[352296812,1739030885094,-261.65307157,0.00011095,2]
[352296813,1739030885106,-238.34692843,0.00011095,2]
[352296814,1739030885116,-261.65307157,0.00011095,2]
[352296815,1739030885128,-269.31307581,0.00011095,2]
[352296816,1739030885139,-230.68692419,0.00011095,2]
[352296817,1739030885155,-322.15307581,0.00011095,2]
[352296818,1739030885164,-177.84692419,0.00011095,2]
[352296819,1739030885178,-322.15307581,0.00011095,2]
[352296820,1739030885188,-177.84692419,0.00011095,2]
[352296821,1739030885200,-322.15307581,0.00011095,2]
[352296822,1739030885211,-177.84692419,0.00011095,2]
[352296823,1739030885223,-343.23307581,0.00011095,2]
[352296824,1739030885234,-156.76692419,0.00011095,2]
[352296825,1739030885245,-343.23307581,0.00011095,2]
[352296826,1739030885255,-304.51037946,0.00011095,2]
[352296827,1739030885267,-195.48962054,0.00011095,2]
[352296828,1739030885276,-304.51037946,0.00011095,2]
[352296829,1739030885287,-195.48962054,0.00011095,2]
[352296830,1739030885296,-181.38539849,0.00011095,2]
[352296831,1739030885313,-318.61460151,0.00011095,2]
[352296832,1739030885327,-181.38539849,0.00011095,2]
[352296833,1739030885344,-318.61460151,0.00011095,2]
[352296834,1739030885354,-181.38539849,0.00011095,2]
[352296835,1739030885368,-318.61460151,0.00011095,2]
[352296836,1739030885378,-181.38539849,0.00011095,2]
[352296837,1739030885398,-318.61460151,0.00011095,2]
[352296838,1739030885407,-234.22539849,0.00011095,2]
[352296839,1739030885418,-265.77460151,0.00011095,2]
[352296840,1739030885428,-234.22539849,0.00011095,2]
[352296841,1739030885439,-265.77460151,0.00011095,2]
[352296842,1739030885448,-234.22539849,0.00011095,2]
[352296843,1739030885460,-265.77460151,0.00011095,2]
[352296844,1739030885469,-237.68901122,0.00011095,2]
[352296845,1739030885480,-262.31098878,0.00011095,2]
[352296846,1739030885489,-258.76901122,0.00011095,2]
[352296847,1739030885501,-483.84098878,0.00011095,2]
[352296848,1739030885510,-16.15901122,0.00011095,2]
[352296849,1739030885521,-483.84098878,0.00011095,2]
[352296850,1739030885531,-16.15901122,0.00011095,2]
[352296851,1739030885547,-500.0,0.00011095,2]
[352296852,1739030885564,-500.0,0.00011095,2]
[352296853,1739030885576,-96.38098878,0.00011095,2]
[352296854,1739030885585,-403.61901122,0.00011095,2]
[352296855,1739030885596,-96.38098878,0.00011095,2]
[352296856,1739030885606,-403.61901122,0.00011095,2]
[352296857,1739030885617,-96.38098878,0.00011095,2]
[352296858,1739030885627,-403.61901122,0.00011095,2]
[352296859,1739030885638,-96.38098878,0.00011095,2]
[352296860,1739030885648,-403.61901122,0.00011095,2]
[352296861,1739030885660,-500.0,0.00011095,2]
[352296862,1739030885718,-20.43098878,0.00011095,2]
[352296863,1739030885727,-479.56901122,0.00011095,2]
[352296864,1739030885763,-20.43098878,0.00011095,2]
[352296865,1739030885772,-479.56901122,0.00011095,2]
[352296866,1739030885784,-20.43098878,0.00011095,2]
[352296867,1739030885794,-347.03443856,0.00011095,2]
[352296868,1739030885804,-132.53457266,0.00011095,2]
[352296869,1739030885820,-367.46542734,0.00011095,2]
[352296870,1739030885830,-132.53457266,0.00011095,2]
[352296871,1739030885841,-500.0,0.00011095,2]
[352296872,1739030885852,-289.81833978,0.00011095,2]
[352296873,1739030885868,-337.90708756,0.00011095,2]
[352296874,1739030885879,-162.09291244,0.00011095,2]
[352296875,1739030885891,-337.90708756,0.00011095,2]
[352296876,1739030885900,-404.70291244,0.00011095,2]
[352296877,1739030885913,-500.0,0.00011095,2]
[352296878,1739030885924,-375.84708756,0.00011095,2]
[352296879,1739030885934,-500.0,0.00011095,2]
[352296880,1739030885945,-236.69291244,0.00011095,2]
[352296881,1739030885956,-263.30708756,0.00011095,2]
[352296882,1739030885966,-236.69291244,0.00011095,2]
[352296883,1739030885978,-294.31708756,0.00011095,2]
[352296884,1739030885987,-198.48339176,0.00011095,2]
[352296885,1739030885997,-7.19952068,0.00011095,2]
[352296886,1739030886009,-492.80047932,0.00011095,2]
[352296887,1739030886018,-7.19952068,0.00011095,2]
[352296888,1739030886030,-758.47047932,0.00011095,2]
[352296889,1739030886039,-165.57952068,0.00011095,2]
[352296890,1739030886056,-334.42047932,0.00011095,2]
[352296891,1739030886065,-252.28823075,0.00011095,2]
[352296892,1739030886086,-247.71176925,0.00011095,2]
[352296893,1739030886095,-252.28823075,0.00011095,2]
[352296894,1739030886107,-247.71176925,0.00011095,2]
[352296895,1739030886117,-252.28823075,0.00011095,2]
[352296896,1739030886129,-247.71176925,0.00011095,2]
[352296897,1739030886138,-252.28823075,0.00011095,2]
[352296898,1739030886151,-332.89176925,0.00011095,2]
[352296899,1739030886162,-167.10823075,0.00011095,2]
[352296900,1739030886174,-332.89176925,0.00011095,2]
[352296901,1739030886184,-534.28,0.00011095,2]
[352296902,1739030886194,-393.08823075,0.00011095,2]
[352296903,1739030886206,-106.91176925,0.00011095,2]
[352296904,1739030886216,-393.08823075,0.00011095,2]
[352296905,1739030886228,-106.91176925,0.00011095,2]
[352296906,1739030886239,-500.0,0.00011095,2]
[352296907,1739030886249,-500.0,0.00011095,2]
[352296908,1739030886259,-173.63823075,0.00011095,2]
[352296909,1739030886272,-271.99392976,0.00011095,2]
[352296910,1739030886284,-519.94,0.00011095,2]
[352296911,1739030886296,-228.97783949,0.00011095,2]
[352296912,1739030886305,-271.02216051,0.00011095,2]
[352296913,1739030886325,-500.0,0.00011095,2]
[352296914,1739030886342,-141.91783949,0.00011095,2]
[352296915,1739030886352,-389.09216051,0.00011095,2]
[352296916,1739030886364,-110.90783949,0.00011095,2]
[352296917,1739030886373,-389.09216051,0.00011095,2]
[352296918,1739030886384,-110.90783949,0.00011095,2]
[352296919,1739030886396,-389.09216051,0.00011095,2]
[352296920,1739030886408,-110.90783949,0.00011095,2]
[352296921,1739030886419,-389.09216051,0.00011095,2]
[352296922,1739030886431,-110.90783949,0.00011095,2]
[352296923,1739030886441,-395.52346995,0.00011095,2]
[352296924,1739030886452,-104.47653005,0.00011095,2]
[352296925,1739030886462,-500.0,0.00011095,2]
[352296926,1739030886472,-161.19346995,0.00011095,2]
[352296927,1739030886484,-338.80653005,0.00011095,2]
[352296928,1739030886494,-161.19346995,0.00011095,2]
[352296929,1739030886508,-338.80653005,0.00011095,2]
[352296930,1739030886518,-161.19346995,0.00011095,2]
[352296931,1739030886531,-500.0,0.00011095,2]
[352296932,1739030886548,-201.62653005,0.00011095,2]
[352296933,1739030886558,-298.37346995,0.00011095,2]
[352296934,1739030886575,-201.62653005,0.00011095,2]
[352296935,1739030886585,-383.55346995,0.00011095,2]
[352296936,1739030886603,-154.53653005,0.00011095,2]
[352296937,1739030886612,-345.46346995,0.00011095,2]
[352296938,1739030886624,-533.70653005,0.00011095,2]
[352296939,1739030886634,-0.57346995,0.00011095,2]
[352296940,1739030886646,-499.42653005,0.00011095,2]
[352296941,1739030886656,-0.57346995,0.00011095,2]
[352296942,1739030886668,-499.42653005,0.00011095,2]
[352296943,1739030886678,-0.57346995,0.00011095,2]
[352296944,1739030886691,-500.0,0.00011095,2]
[352296945,1739030886704,-493.34653005,0.00011095,2]
[352296946,1739030886713,-6.65346995,0.00011095,2]
[352296947,1739030886725,-1074.12653005,0.00011095,2]
[352296948,1739030886735,-120.42346995,0.00011095,2]
[352296949,1739030886746,-379.57653005,0.00011095,2]
[352296950,1739030886756,-500.0,0.00011095,2]
[352296951,1739030886766,-33.36346995,0.00011095,2]
[352296952,1739030886779,-466.63653005,0.00011095,2]
[352296953,1739030886788,-33.36346995,0.00011095,2]
[352296954,1739030886805,-466.63653005,0.00011095,2]
[352296955,1739030886815,-33.36346995,0.00011095,2]
[352296956,1739030886826,-500.0,0.00011095,2]
[352296957,1739030886838,-394.42653005,0.00011095,2]
[352296958,1739030886847,-105.57346995,0.00011095,2]
[352296959,1739030886864,-133.70553139,0.00011095,2]
[352296960,1739030886874,-366.29446861,0.00011095,2]
[352296961,1739030886885,-133.70553139,0.00011095,2]
[352296962,1739030886895,-366.29446861,0.00011095,2]
[352296963,1739030886907,-133.70553139,0.00011095,2]
[352296964,1739030886920,-366.29446861,0.00011095,2]
[352296965,1739030886932,-500.0,0.00011095,2]
[352296966,1739030886944,-500.0,0.00011095,2]
[352296967,1739030886961,-88.78553139,0.00011095,2]
[352296968,1739030886971,-500.0,0.00011095,2]
[352296969,1739030886981,-274.03446861,0.00011095,2]
[352296970,1739030886993,-500.0,0.00011095,2]
[352296971,1739030887010,-184.92553139,0.00011095,2]
[352296972,1739030887020,-319.137124,0.00011095,2]
[352296973,1739030887032,-276.882876,0.00011095,2]
[352296974,1739030887042,-223.117124,0.00011095,2]
[352296975,1739030887054,-276.882876,0.00011095,2]
[352296976,1739030887063,-261.207124,0.00011095,2]
[352296977,1739030887075,-238.792876,0.00011095,2]
[352296978,1739030887254,-500.0,0.00011095,2]
[352296979,1739030887265,-140.377124,0.00011095,2]
[352296980,1739030887277,-483.572876,0.00011095,2]
[352296981,1739030887287,-16.427124,0.00011095,2]
[352296982,1739030887299,-483.572876,0.00011095,2]
[352296983,1739030887308,-16.427124,0.00011095,2]
[352296984,1739030887321,-487.512876,0.00011095,2]
[352296985,1739030887331,-506.407124,0.00011095,2]
[352296986,1739030887352,-500.0,0.00011095,2]
[352296987,1739030887365,-1080.78,0.00011095,2]
[352296988,1739030887378,-500.0,0.00011095,2]
[352296989,1739030887403,-301.742876,0.00011095,2]
[352296990,1739030887412,-198.257124,0.00011095,2]
[352296991,1739030887424,-301.742876,0.00011095,2]
[352296992,1739030887434,-198.257124,0.00011095,2]
[352296993,1739030887451,-500.0,0.00010958,2]
[352296994,1739030887467,-500.0,0.00011095,2]
[352296995,1739030887483,-500.0,0.00011095,2]
[352296996,1739030887495,-496.7,0.00011095,2]
[352296997,1739030887512,-500.0,0.00011095,2]
[352296998,1739030887525,-505.952876,0.00011095,2]
[352296999,1739030887535,-421.837124,0.00011095,2]